Workbook

Sheet Hlharok

Sheet ImpHarok
A1: Rok | B1: Mesiac | C1: Suma
A2: 2018 | B2: 1 | C2: 4
A3: 2018 | B3: 2 | C3: 3
A4: 2018 | B4: 3 | C4: 4
A5: 2018 | B5: 4 | C5: 4
A6: 2018 | B6: 5 | C6: 4
A7: 2018 | B7: 6 | C7: 4
A8: 2018 | B8: 7 | C8: 5
A9: 2018 | B9: 8 | C9: 4
A10: 2018 | B10: 9 | C10: 6
A11: 2018 | B11: 10 | C11: 6
A12: 2018 | B12: 11 | C12: 6
A13: 2018 | B13: 12 | C13: 7
A14: 2019 | B14: 1 | C14: 4
A15: 2019 | B15: 2 | C15: 5
A16: 2019 | B16: 3 | C16: 6
A17: 2019 | B17: 4 | C17: 4
A18: 2019 | B18: 5 | C18: 7
A19: 2019 | B19: 6 | C19: 6
A20: 2019 | B20: 7 | C20: 5
A21: 2019 | B21: 8 | C21: 5
A22: 2019 | B22: 9 | C22: 4
A23: 2019 | B23: 10 | C23: 5
A24: 2019 | B24: 11 | C24: 4
A25: 2019 | B25: 12 | C25: 6
A26: 2020 | B26: 1 | C26: 4
A27: 2020 | B27: 2 | C27: 5
A28: 2020 | B28: 3 | C28: 4
A29: 2020 | B29: 4 | C29: 4
A30: 2020 | B30: 5 | C30: 3
A31: 2020 | B31: 6 | C31: 5
A32: 2020 | B32: 7 | C32: 6
A33: 2020 | B33: 8 | C33: 5
A34: 2020 | B34: 9 | C34: 9
A35: 2020 | B35: 10 | C35: 9
A36: 2020 | B36: 11 | C36: 7
A37: 2020 | B37: 12 | C37: 6
A38: 2021 | B38: 1 | C38: 1

Sheet Výpočty
A1: Rok | B1: Mesiac | C1: Spotreba | D1: Priemer | E1: dopyt za mesiace | F1: priemer.mes.s | G1: sez. koef. | H1: sum roky | I1: sezonny pomer | J1: sum dokopy | K1: sez. Dopyt | L1: sezonnost+trend | M1: dopyt s trendom | R1: i | S1: yi | T1: i*yi | U1: Yi | V1: (yi-Yi)^2 | W1: y ^2 | X1: rozptyl | Z1: Produkt A1 | AA1: Mesiac | AB1: Spotreba | AC1: Priemer
A2: 2018 | B2: 1 | C2: 4 | D2: =$F$2 -> 5.139 | E2: =ROUND((C2+C14+C26)/3,3) -> 4 | F2: =ROUND(AVERAGE(E2:E13),3) -> 5.139 | G2: =ROUND(SUM(C2,C14,C26)/((COUNT($C:$C)/12)*$F$2),3) -> 0.778 | H2: =SUM(C2:C13) -> 57 | I2: =ROUND(MAX(G2:G13)/MIN(G2:G13),3) -> 1.667 | J2: =SUM(H2:H4) -> 185 | K2: =ROUND($F$2*G2,1) -> 4 | L2: 7.982 | R2: 1 | S2: =C2 -> 4 | T2: =R2*S2 -> 4 | U2: =($M$7*R2)+$M$9 -> 4.177 | V2: =(S2-U2)^2 -> 0.031329 | W2: =S2*S2 -> 16 | X2: =1/35*(W38-36*F2^2) -> 2.0646984 | AA2: 1 | AB2: 7 | AC2: 12.56
A3: 2018 | B3: 2 | C3: 3 | D3: =$F$2 -> 5.139 | E3: 4.333 | G3: 0.843 | H3: =SUM(C14:C25) -> 61 | K3: 4.3 | L3: 9.867 | R3: 2 | S3: 3 | T3: 6 | U3: 4.232 | V3: 1.517824 | W3: =S3*S3 -> 9 | AA3: 2 | AB3: 13 | AC3: 12.56
A4: 2018 | B4: 3 | C4: 4 | D4: 5.139 | E4: 4.667 | G4: 0.908 | H4: =SUM(C26:C37) -> 67 | K4: 4.7 | L4: 9.867 | R4: 3 | S4: 4 | T4: 12 | U4: 4.287 | V4: 0.082369 | W4: =S4*S4 -> 16 | X4: oc | AA4: 3 | AB4: 7 | AC4: 12.56
A5: 2018 | B5: 4 | C5: 4 | D5: 5.139 | E5: 4 | G5: 0.778 | K5: 4 | L5: 8.931 | R5: 4 | S5: 4 | T5: 16 | U5: 4.342 | V5: 0.116964 | W5: =S5*S5 -> 16 | X5: =SQRT(3*X2+(F2*0.5)^2) -> 3.577209171 | AA5: 4 | AB5: 6 | AC5: 12.56
A6: 2018 | B6: 5 | C6: 4 | D6: 5.139 | E6: 4.667 | G6: 0.908 | K6: 4.7 | L6: 10.803 | M6: a | R6: 5 | S6: 4 | T6: 20 | U6: 4.397 | V6: 0.157609 | W6: 16 | X6: poist | AA6: 5 | AB6: 17 | AC6: 12.56
A7: 2018 | B7: 6 | C7: 4 | D7: 5.139 | E7: 5 | G7: 0.973 | K7: 5 | L7: 13.156 | M7: =ROUND((12/(COUNT(C2:C37)*1295))*T38-((6/35)*$F$2),3) -> 0.055 | R7: 6 | S7: 4 | T7: 24 | U7: 4.452 | V7: 0.204304 | W7: 16 | X7: =ROUND(1.645 *X5,3) -> 5.885 | AA7: 6 | AB7: 7 | AC7: 12.56
A8: 2018 | B8: 7 | C8: 5 | D8: 5.139 | E8: 5.333 | G8: 1.038 | K8: 5.3 | L8: 11.752 | M8: b | R8: 7 | S8: 5 | T8: 35 | U8: 4.507 | V8: 0.243049 | W8: 25 | X8: bod znovuob. | AA8: 7 | AB8: 6 | AC8: 12.56
A9: 2018 | B9: 8 | C9: 4 | D9: 5.139 | E9: =ROUND((C9+C21+C33)/3,3) -> 4.667 | G9: 0.908 | K9: 4.7 | L9: 14.092 | M9: =ROUND($F$2-($M$7*18.5),3) -> 4.122 | R9: 8 | S9: 4 | T9: 32 | U9: 4.562 | V9: 0.315844 | W9: 16 | X9: =F2*3 -> 15.417 | AA9: 8 | AB9: 14 | AC9: 12.56
A10: 2018 | B10: 9 | C10: 6 | D10: 5.139 | E10: 6.333 | G10: 1.232 | K10: 6.3 | L10: 10.335 | M10: sres | O10: t | R10: 9 | S10: 6 | T10: 54 | U10: 4.617 | V10: 1.912689 | W10: 36 | AA10: 9 | AB10: 17 | AC10: 12.56
A11: 2018 | B11: 10 | C11: 6 | D11: 5.139 | E11: 6.667 | G11: 1.297 | K11: 6.7 | L11: 15.977 | M11: =ROUND(V38/(36-2),3) -> 1.775 | O11: =ROUND(M7/M11*SQRT((36*(36^2-1)/12)),3) -> 1.931 | R11: 10 | S11: 6 | T11: 60 | U11: 4.672 | V11: 1.763584 | W11: 36 | AA11: 10 | AB11: 12 | AC11: 12.56
A12: 2018 | B12: 11 | C12: 6 | D12: 5.139 | E12: 5.667 | G12: 1.103 | K12: 5.7 | L12: 20.67 | R12: 11 | S12: 6 | T12: 66 | U12: 4.727 | V12: 1.620529 | W12: 36 | AA12: 11 | AB12: 21 | AC12: 12.56
A13: 2018 | B13: 12 | C13: 7 | D13: 5.139 | E13: 6.333 | G13: 1.232 | I13: =SUM(G2:G13) -> 11.998 | K13: 6.3 | L13: 22.555 | R13: 12 | S13: 7 | T13: 84 | U13: 4.782 | V13: 4.919524 | W13: 49 | AA13: 12 | AB13: 23 | AC13: 12.56
A14: 2019 | B14: 1 | C14: 4 | D14: 5.139 | M14: trend | R14: 13 | S14: 4 | T14: 52 | U14: 4.837 | V14: 0.700569 | W14: 16 | AA14: 1 | AB14: 9 | AC14: 12.56
A15: 2019 | B15: 2 | C15: 5 | D15: 5.139 | M15: =$M$9+($M$7*(36+R2)) -> 6.157 | R15: 14 | S15: 5 | T15: 70 | U15: 4.892 | V15: 0.011664 | W15: 25 | AA15: 2 | AB15: 12 | AC15: 12.56
A16: 2019 | B16: 3 | C16: 6 | D16: 5.139 | M16: 6.212 | R16: 15 | S16: 6 | T16: 90 | U16: 4.947 | V16: 1.108809 | W16: 36 | AA16: 3 | AB16: 8 | AC16: 12.56
A17: 2019 | B17: 4 | C17: 4 | D17: 5.139 | M17: 6.267 | R17: 16 | S17: 4 | T17: 64 | U17: 5.002 | V17: 1.004004 | W17: 16 | AA17: 4 | AB17: 5 | AC17: 12.56
A18: 2019 | B18: 5 | C18: 7 | D18: 5.139 | M18: 6.322 | R18: 17 | S18: 7 | T18: 119 | U18: 5.057 | V18: 3.775249 | W18: 49 | AA18: 5 | AB18: 5 | AC18: 12.56
A19: 2019 | B19: 6 | C19: 6 | D19: 5.139 | M19: 6.377 | R19: 18 | S19: 6 | T19: 108 | U19: 5.112 | V19: 0.788544 | W19: 36 | AA19: 6 | AB19: 9 | AC19: 12.56
A20: 2019 | B20: 7 | C20: 5 | D20: 5.139 | M20: 6.432 | R20: 19 | S20: 5 | T20: 95 | U20: 5.167 | V20: 0.027889 | W20: 25 | AA20: 7 | AB20: 13 | AC20: 12.56
A21: 2019 | B21: 8 | C21: 5 | D21: 5.139 | M21: 6.487 | R21: 20 | S21: 5 | T21: 100 | U21: 5.222 | V21: 0.049284 | W21: 25 | AA21: 8 | AB21: 11 | AC21: 12.56
A22: 2019 | B22: 9 | C22: 4 | D22: 5.139 | M22: 6.542 | R22: 21 | S22: 4 | T22: 84 | U22: 5.277 | V22: 1.630729 | W22: 16 | AA22: 9 | AB22: 5 | AC22: 12.56
A23: 2019 | B23: 10 | C23: 5 | D23: 5.139 | M23: 6.597 | R23: 22 | S23: 5 | T23: 110 | U23: 5.332 | V23: 0.110224 | W23: 25 | AA23: 10 | AB23: 13 | AC23: 12.56
A24: 2019 | B24: 11 | C24: 4 | D24: 5.139 | M24: 6.652 | R24: 23 | S24: 4 | T24: 92 | U24: 5.387 | V24: 1.923769 | W24: 16 | AA24: 11 | AB24: 12 | AC24: 12.56
A25: 2019 | B25: 12 | C25: 6 | D25: 5.139 | M25: 6.707 | R25: 24 | S25: 6 | T25: 144 | U25: 5.442 | V25: 0.311364 | W25: 36 | AA25: 12 | AB25: 25 | AC25: 12.56
A26: 2020 | B26: 1 | C26: 4 | D26: 5.139 | M26: 6.762 | R26: 25 | S26: 4 | T26: 100 | U26: 5.497 | V26: 2.241009 | W26: 16 | AA26: 1 | AB26: 13 | AC26: 12.56
A27: 2020 | B27: 2 | C27: 5 | D27: 5.139 | R27: 26 | S27: 5 | T27: 130 | U27: 5.552 | V27: 0.304704 | W27: 25 | AA27: 2 | AB27: 16 | AC27: 12.56
A28: 2020 | B28: 3 | C28: 4 | D28: 5.139 | R28: 27 | S28: 4 | T28: 108 | U28: 5.607 | V28: 2.582449 | W28: 16 | AA28: 3 | AB28: 9 | AC28: 12.56
A29: 2020 | B29: 4 | C29: 4 | D29: 5.139 | R29: 28 | S29: 4 | T29: 112 | U29: 5.662 | V29: 2.762244 | W29: 16 | AA29: 4 | AB29: 15 | AC29: 12.56
A30: 2020 | B30: 5 | C30: 3 | D30: 5.139 | R30: 29 | S30: 3 | T30: 87 | U30: 5.717 | V30: 7.382089 | W30: 9 | AA30: 5 | AB30: 12 | AC30: 12.56
A31: 2020 | B31: 6 | C31: 5 | D31: 5.139 | R31: 30 | S31: 5 | T31: 150 | U31: 5.772 | V31: 0.595984 | W31: 25 | AA31: 6 | AB31: 12 | AC31: 12.56
A32: 2020 | B32: 7 | C32: 6 | D32: 5.139 | R32: 31 | S32: 6 | T32: 186 | U32: 5.827 | V32: 0.029929 | W32: 36 | AA32: 7 | AB32: 2 | AC32: 12.56
A33: 2020 | B33: 8 | C33: 5 | D33: 5.139 | R33: 32 | S33: 5 | T33: 160 | U33: 5.882 | V33: 0.777924 | W33: 25 | AA33: 8 | AB33: 3 | AC33: 12.56
A34: 2020 | B34: 9 | C34: 9 | D34: 5.139 | R34: 33 | S34: 9 | T34: 297 | U34: 5.937 | V34: 9.381969 | W34: 81 | AA34: 9 | AB34: 6 | AC34: 12.56
A35: 2020 | B35: 10 | C35: 9 | D35: 5.139 | R35: 34 | S35: 9 | T35: 306 | U35: 5.992 | V35: 9.048064 | W35: 81 | AA35: 10 | AB35: 13 | AC35: 12.56
A36: 2020 | B36: 11 | C36: 7 | D36: 5.139 | R36: 35 | S36: 7 | T36: 245 | U36: 6.047 | V36: 0.908209 | W36: 49 | AA36: 11 | AB36: 38 | AC36: 12.56
A37: 2020 | B37: 12 | C37: 6 | D37: 5.139 | R37: 36 | S37: 6 | T37: 216 | U37: 6.102 | V37: =ROUND((S37-U37)^2,5) -> 0.0104 | W37: 36 | AA37: 12 | AB37: 36 | AC37: 12.56
R38: spolu | S38: =SUM(S2:S37) -> 185 | T38: =SUM(T2:T37) -> 3638 | U38: =SUM(U2:U37) -> 185.022 | V38: =SUM(V2:V37) -> 60.35269 | W38: =SUM(W2:W37) -> 1023

Sheet A2 (hidden)
A1: 1 | B1: 4 | C1: 5 | D1: 8 | E1: =SUM(B1:D1) -> 17 | F1: =ROUND(AVERAGE(B1:D1),3) -> 5.667 | G1: 0.614
A2: 2 | B2: 5 | C2: 7 | D2: 9 | E2: =SUM(B2:D2) -> 21 | F2: =ROUND(AVERAGE(B2:D2),3) -> 7 | G2: 0.759 | J2: Mesiac | K2: Očistená spotreba xik.: | O2: 1 | P2: 4 | Q2: 6.515
A3: 3 | B3: 6 | C3: 6 | D3: 9 | E3: 21 | F3: 7 | G3: 0.759 | K3: 2018 | L3: 2019 | M3: 2020 | O3: 2 | P3: 5 | Q3: 6.588
A4: 4 | B4: 5 | C4: 7 | D4: 7 | E4: 19 | F4: 6.333 | G4: 0.687 | J4: 1 | K4: =ROUND(B1/G1,3) -> 6.515 | L4: =ROUND(C1/G1,3) -> 8.143 | M4: =ROUND(D1/G1,3) -> 13.029 | O4: 3 | P4: 6 | Q4: 7.905
A5: 5 | B5: 7 | C5: 8 | D5: 8 | E5: 23 | F5: 7.667 | G5: 0.831 | J5: 2 | K5: 6.588 | L5: 9.223 | M5: 11.858 | O5: 4 | P5: 5 | Q5: 7.278
A6: 6 | B6: 8 | C6: 9 | D6: 11 | E6: 28 | F6: 9.333 | G6: 1.012 | J6: 3 | K6: 7.905 | L6: 7.905 | M6: 11.858 | O6: 5 | P6: 7 | Q6: 8.424
A7: 7 | B7: 7 | C7: 8 | D7: 10 | E7: 25 | F7: 8.333 | G7: 0.904 | J7: 4 | K7: 7.278 | L7: 10.189 | M7: 10.189 | O7: 6 | P7: 8 | Q7: 7.905
A8: 8 | B8: 8 | C8: 9 | D8: 13 | E8: 30 | F8: 10 | G8: 1.084 | J8: 5 | K8: 8.424 | L8: 9.627 | M8: 9.627 | O8: 7 | P8: 7 | Q8: 7.743
A9: 9 | B9: 6 | C9: 6 | D9: 10 | E9: 22 | F9: 7.333 | G9: 0.795 | J9: 6 | K9: 7.905 | L9: 8.893 | M9: 10.87 | O9: 8 | P9: 8 | Q9: 7.38
A10: 10 | B10: 9 | C10: 10 | D10: 15 | E10: 34 | F10: 11.333 | G10: 1.229 | J10: 7 | K10: 7.743 | L10: 8.85 | M10: 11.062 | O10: 9 | P10: 6 | Q10: 7.547
A11: 11 | B11: 15 | C11: 12 | D11: 17 | E11: 44 | F11: 14.667 | G11: 1.59 | J11: 8 | K11: 7.38 | L11: 8.303 | M11: 11.993 | O11: 10 | P11: 9 | Q11: 7.323
A12: 12 | B12: 15 | C12: 16 | D12: 17 | E12: 48 | F12: 16 | G12: 1.735 | J12: 9 | K12: 7.547 | L12: 7.547 | M12: 12.579 | O12: 11 | P12: 15 | Q12: 9.434
B13: =SUM(B1:B12) -> 95 | C13: =SUM(C1:C12) -> 103 | D13: =SUM(D1:D12) -> 134 | E13: =SUM(E1:E12) -> 332 | J13: 10 | K13: 7.323 | L13: 8.137 | M13: 12.205 | O13: 12 | P13: 15 | Q13: 8.646
J14: 11 | K14: 9.434 | L14: 7.547 | M14: 10.692 | O14: 1 | P14: 5 | Q14: 8.143
J15: 12 | K15: 8.646 | L15: 9.222 | M15: 9.798 | O15: 2 | P15: 7 | Q15: 9.223
J16: Spolu | K16: =SUM(K4:K15) -> 92.688 | L16: =SUM(L4:L15) -> 103.586 | M16: =SUM(M4:M15) -> 135.76 | O16: 3 | P16: 6 | Q16: 7.905
O17: 4 | P17: 7 | Q17: 10.189
O18: 5 | P18: 8 | Q18: 9.627
O19: 6 | P19: 9 | Q19: 8.893
O20: 7 | P20: 8 | Q20: 8.85
O21: 8 | P21: 9 | Q21: 8.303
O22: 9 | P22: 6 | Q22: 7.547
O23: 10 | P23: 10 | Q23: 8.137
O24: 11 | P24: 12 | Q24: 7.547
O25: 12 | P25: 16 | Q25: 9.222
C26: Mesiac | D26: Skutočná spotreba yik. V ks: | O26: 1 | P26: 8 | Q26: 13.029
C27: Mesiac | D27: 2018 | E27: 2019 | F27: 2020 | G27: súčet | H27: Priemer | I27: Sez. koef. | O27: 2 | P27: 9 | Q27: 11.858
C28: 1 | D28: 4 | E28: 5 | F28: 8 | G28: 17 | H28: 5.667 | I28: 0.614 | O28: 3 | P28: 9 | Q28: 11.858
C29: 2 | D29: 5 | E29: 7 | F29: 9 | G29: 21 | H29: 7 | I29: 0.759 | K29: Rok | L29: k | M29: Syk | N29: k.Syk | O29: 4 | P29: 7 | Q29: 10.189
C30: 3 | D30: 6 | E30: 6 | F30: 9 | G30: 21 | H30: 7 | I30: 0.759 | K30: 2018 | L30: 1 | M30: 95 | N30: 95 | O30: 5 | P30: 8 | Q30: 9.627
C31: 4 | D31: 5 | E31: 7 | F31: 7 | G31: 19 | H31: 6.333 | I31: 0.687 | K31: 2019 | L31: 2 | M31: 103 | N31: 206 | O31: 6 | P31: 11 | Q31: 10.87
C32: 5 | D32: 7 | E32: 8 | F32: 8 | G32: 23 | H32: 7.667 | I32: 0.831 | K32: 2020 | L32: 3 | M32: 134 | N32: 402 | O32: 7 | P32: 10 | Q32: 11.062
C33: 6 | D33: 8 | E33: 9 | F33: 11 | G33: 28 | H33: 9.333 | I33: 1.012 | O33: 8 | P33: 13 | Q33: 11.993 | T33: Mesiac | U33: 2018 | W33: 2019 | Y33: 2020
C34: 7 | D34: 7 | E34: 8 | F34: 10 | G34: 25 | H34: 8.333 | I34: 0.904 | O34: 9 | P34: 10 | Q34: 12.579 | T34: i | U34: xik | V34: (xik-Xk)² | W34: xik | X34: (xik-Xk)² | Y34: xik | Z34: (xik-Xk)²
C35: 8 | D35: 8 | E35: 9 | F35: 13 | G35: 30 | H35: 10 | I35: 1.084 | O35: 10 | P35: 15 | Q35: 12.205 | T35: 1 | U35: 6.515 | V35: =(U35-$Q$42)^2 -> 1.964669444 | W35: 8.143 | X35: =(W35-$Q$43)^2 -> 0.1938934444 | Y35: 13.029 | Z35: =(Y35-$Q$44)^2 -> 3.468285444
C36: 9 | D36: 6 | E36: 6 | F36: 10 | G36: 22 | H36: 7.333 | I36: 0.795 | O36: 11 | P36: 17 | Q36: 10.692 | T36: 2 | U36: 6.588 | V36: =(U36-$Q$42)^2 -> 1.765355111 | W36: 9.223 | X36: =(W36-$Q$43)^2 -> 0.4091734444 | Y36: 11.858 | Z36: =(Y36-$Q$44)^2 -> 0.4779417778
C37: 10 | D37: 9 | E37: 10 | F37: 15 | G37: 34 | H37: 11.333 | I37: 1.229 | O37: 12 | P37: 17 | Q37: 9.798 | T37: 3 | U37: 7.905 | V37: 0.0001361111111 | W37: 7.905 | X37: 0.4601361111 | Y37: 11.858 | Z37: 0.4779417778
C38: 11 | D38: 15 | E38: 12 | F38: 17 | G38: 44 | H38: 14.667 | I38: 1.59 | T38: 4 | U38: 7.278 | V38: 0.4078951111 | W38: 10.189 | X38: 2.578165444 | Y38: 10.189 | Z38: 0.9558321111
C39: 12 | D39: 15 | E39: 16 | F39: 17 | G39: 48 | H39: 16 | I39: 1.735 | T39: 5 | U39: 8.424 | V39: 0.2573871111 | W39: 9.627 | X39: 1.089240111 | Y39: 9.627 | Z39: 2.370573444
D40: 95 | E40: 103 | F40: 134 | G40: 332 | T40: 6 | U40: 7.905 | V40: 0.0001361111111 | W40: 8.893 | X40: 0.09589344444 | Y40: 10.87 | Z40: 0.08801111111
T41: 7 | U41: 7.743 | V41: 0.03016011111 | W41: 8.85 | X41: 0.07111111111 | Y41: 11.062 | Z41: 0.01095511111
N42: =L45*I28 -> 1.083175723 | P42: X1 | Q42: =95/12 -> 7.916666667 | T42: 8 | U42: 7.38 | V42: 0.2880111111 | W42: 8.303 | X42: 0.07858677778 | Y42: 11.993 | Z42: 0.6828267778
P43: X2 | Q43: =103/12 -> 8.583333333 | T43: 9 | U43: 7.547 | V43: 0.1366534444 | W43: 7.547 | X43: 1.073986778 | Y43: 12.579 | Z43: 1.994685444
K44: sres | L44: =SUM(V47:Z47)/9.47 -> 3.112154101 | P44: X3 | Q44: =134/12 -> 11.16666667 | T44: 10 | U44: 7.323 | V44: 0.3524401111 | W44: 8.137 | X44: 0.1992134444 | Y44: 12.205 | Z44: 1.078136111
L45: =SQRT(L44) -> 1.764129842 | T45: 11 | U45: 9.434 | V45: 2.302300444 | W45: 7.547 | X45: 1.073986778 | Y45: 10.692 | Z45: 0.2253084444
T46: 12 | U46: 8.646 | V46: 0.5319271111 | W46: 9.222 | X46: 0.4078951111 | Y46: 9.798 | Z46: 1.873248444
L47: Mesiac | M47: index | N47: Si | O47: Yi,4 | P47: √D(pi) | Q47: 2.√D(pi) | R47: Hranice pásma pri P=90 | T47: Suma | U47: - | V47: =SUM(V35:V46) -> 8.037071333 | W47: - | X47: =SUM(X35:X46) -> 7.731282 | Y47: - | Z47: =SUM(Z35:Z46) -> 13.703746
L48: 1 | M48: 1 | N48: 0.614 | O48: =ROUND(N48*$H$50,2) -> 7.66 | P48: =ROUND(N48*$L$45,2) -> 1.08 | Q48: =2*P48 -> 2.16 | R48: =O48-Q48 -> 5.5 | S48: =O48+Q48 -> 9.82
L49: 2 | M49: 2 | N49: 0.759 | O49: =ROUND(N49*$H$50,2) -> 9.46 | P49: =ROUND(N49*$L$45,2) -> 1.34 | Q49: =2*P49 -> 2.68 | R49: =O49-Q49 -> 6.78 | S49: =O49+Q49 -> 12.14
H50: 12.47 | L50: 3 | M50: 3 | N50: 0.759 | O50: 9.46 | P50: 1.34 | Q50: 2.68 | R50: 6.78 | S50: 12.14
L51: 4 | M51: 4 | N51: 0.687 | O51: 8.57 | P51: 1.21 | Q51: 2.42 | R51: 6.15 | S51: 10.99
L52: 5 | M52: 5 | N52: 0.831 | O52: 10.36 | P52: 1.47 | Q52: 2.94 | R52: 7.42 | S52: 13.3
L53: 6 | M53: 6 | N53: 1.012 | O53: 12.62 | P53: 1.79 | Q53: 3.58 | R53: 9.04 | S53: 16.2
L54: 7 | M54: 7 | N54: 0.904 | O54: 11.27 | P54: 1.59 | Q54: 3.18 | R54: 8.09 | S54: 14.45
L55: 8 | M55: 8 | N55: 1.084 | O55: 13.52 | P55: 1.91 | Q55: 3.82 | R55: 9.7 | S55: 17.34
L56: 9 | M56: 9 | N56: 0.795 | O56: 9.91 | P56: 1.4 | Q56: 2.8 | R56: 7.11 | S56: 12.71
L57: 10 | M57: 10 | N57: 1.229 | O57: 15.33 | P57: 2.17 | Q57: 4.34 | R57: 10.99 | S57: 19.67
L58: 11 | M58: 11 | N58: 1.59 | O58: 19.83 | P58: 2.8 | Q58: 5.6 | R58: 14.23 | S58: 25.43
L59: 12 | M59: 12 | N59: 1.735 | O59: =ROUND(N59*$H$50,2) -> 21.64 | P59: 3.06 | Q59: 6.12 | R59: 15.52 | S59: 27.76
L62: Mesiac | M62: index | N62: Si | O62: Yi,4 | P62: √D(pi) | Q62: 2.√D(pi) | R62: Hranice pásma pri P=90
L63: 1 | M63: 1 | N63: 0.614 | O63: 7.66 | P63: 1.08 | Q63: 2.16 | R63: 5,5 až 9,82
L64: 2 | M64: 2 | N64: 0.759 | O64: 9.46 | P64: 1.34 | Q64: 2.68 | R64: 6,78 až 12,14
L65: 3 | M65: 3 | N65: 0.759 | O65: 9.46 | P65: 1.34 | Q65: 2.68 | R65: 6,78 až 12,14
L66: 4 | M66: 4 | N66: 0.687 | O66: 8.57 | P66: 1.21 | Q66: 2.42 | R66: 6,15 až 10,99
L67: 5 | M67: 5 | N67: 0.831 | O67: 10.36 | P67: 1.47 | Q67: 2.94 | R67: 7,42 až 13,3
L68: 6 | M68: 6 | N68: 1.012 | O68: 12.62 | P68: 1.79 | Q68: 3.58 | R68: 9,04 až 16,2
L69: 7 | M69: 7 | N69: 0.904 | O69: 11.27 | P69: 1.59 | Q69: 3.18 | R69: 8,09 až 14,45
L70: 8 | M70: 8 | N70: 1.084 | O70: 13.52 | P70: 1.91 | Q70: 3.82 | R70: 9,7 až 17,34
L71: 9 | M71: 9 | N71: 0.795 | O71: 9.91 | P71: 1.4 | Q71: 2.8 | R71: 7,11 až 12,71
L72: 10 | M72: 10 | N72: 1.229 | O72: 15.33 | P72: 2.17 | Q72: 4.34 | R72: 10,99 až 19,67
L73: 11 | M73: 11 | N73: 1.59 | O73: 19.83 | P73: 2.8 | Q73: 5.6 | R73: 14,23 až 25,43
L74: 12 | M74: 12 | N74: 1.735 | O74: 21.64 | P74: 3.06 | Q74: 6.12 | R74: 15,52 až 27,76
